fUST/lending_fUST_20250709
["ID","MTS","AMOUNT","RATE_DAILY","PERIOD"]
[370441607,1752019851025,-460.0,0.00020273,2]
[370441609,1752019851034,-460.0,0.00020273,2]
[370441611,1752019851043,-460.0,0.00020273,2]
[370441613,1752019851052,-2289.87,0.00020273,2]
[370441615,1752019851062,-460.0,0.00020273,2]
[370441617,1752019851071,-460.0,0.00020273,2]
[370441619,1752019851080,-790.34,0.00020273,2]
[370441621,1752019851089,-3100.13,0.00020273,2]
[370441623,1752019851098,-460.0,0.00020273,2]
[370441625,1752019851107,-460.0,0.00020273,2]
[370441627,1752019851116,-460.0,0.00020273,2]
[370441629,1752019851125,-460.0,0.00020273,2]
[370441631,1752019851134,-460.0,0.00020273,2]
[370441633,1752019851143,-889.7,0.00020273,2]
[370441635,1752019851152,-460.0,0.00020273,2]
[370441637,1752019851161,-460.0,0.00020273,2]
[370441639,1752019851170,-460.0,0.00020273,2]
[370441641,1752019851179,-460.0,0.00020273,2]
[370441642,1752019851188,-460.0,0.00020273,2]
[370441644,1752019851197,-460.0,0.00020273,2]
[370441646,1752019851206,-460.0,0.00020273,2]
[370441648,1752019851215,-460.0,0.00020273,2]
[370441650,1752019851224,-951.48,0.00020273,2]
[370441652,1752019851234,-1626.12,0.00020273,2]
[370441654,1752019851243,-460.0,0.00020273,2]
[370441656,1752019851252,-1831.24,0.00020273,2]
[370441658,1752019851262,-460.0,0.00020273,2]
[370441660,1752019851271,-460.0,0.00020273,2]
[370441662,1752019851280,-460.0,0.00020273,2]
[370441664,1752019851289,-460.0,0.00020273,2]
[370441666,1752019851298,-460.0,0.00020273,2]
[370441668,1752019851308,-679.73,0.00020273,2]
[370441670,1752019851317,-2108.53,0.00020273,2]
[370441672,1752019851326,-1057.61,0.00020273,2]
[370441674,1752019851335,-319.81666574,0.00020273,2]
[370441676,1752019851344,-460.0,0.00020273,2]
[370441678,1752019851353,-520.41,0.00020273,2]
[370441680,1752019851362,-460.0,0.00020273,2]
[370441682,1752019851371,-592.43,0.00020273,2]
[370441684,1752019851381,-460.0,0.00020273,2]
[370441686,1752019851390,-460.0,0.00020273,2]
[370441688,1752019851399,-281.68,0.00020273,2]
[370441690,1752019851409,-539.0,0.00020273,2]
[370441692,1752019851418,-460.0,0.00020273,2]
[370441694,1752019851428,-460.0,0.00020273,2]
[370441696,1752019851437,-460.0,0.00020273,2]
[370441698,1752019851447,-460.0,0.00020273,2]
[370441700,1752019851457,-982.88,0.00020273,2]
[370441702,1752019851466,-460.0,0.00020273,2]
[370441704,1752019851476,-460.0,0.00020273,2]
[370441706,1752019851485,-460.0,0.00020273,2]
[370441708,1752019851495,-460.0,0.00020273,2]
[370441710,1752019851504,-766.74,0.00020273,2]
[370441712,1752019851514,-460.0,0.00020273,2]
[370441714,1752019851523,-1025.26,0.00020273,2]
[370441716,1752019851533,-460.0,0.00020273,2]
[370441718,1752019851543,-1400.58,0.00020273,2]
[370441720,1752019851553,-460.0,0.00020273,2]
[370441722,1752019851562,-569.88,0.00020273,2]
[370441724,1752019851572,-460.0,0.00020273,2]
[370441726,1752019851582,-460.0,0.00020273,2]
[370441728,1752019851591,-460.0,0.00020273,2]
[370441730,1752019851601,-460.0,0.00020273,2]
[370441732,1752019851610,-1543.53,0.00020273,2]
[370441734,1752019851620,-460.0,0.00020273,2]
[370441736,1752019851630,-640.26,0.00020273,2]
[370441738,1752019851639,-460.0,0.00020273,2]
[370441740,1752019851650,-460.0,0.00020273,2]
[370441742,1752019851661,-460.0,0.00020273,2]
[370441743,1752019851671,-460.0,0.00020273,2]
[370441746,1752019851681,-460.0,0.00020273,2]
[370441748,1752019851691,-537.19,0.00020273,2]
[370441750,1752019851703,-460.0,0.00020273,2]
[370441751,1752019851712,-460.0,0.00020273,2]
[370441753,1752019851721,-460.0,0.00020273,2]
[370441755,1752019851732,-1093.05,0.00020273,2]
[370441757,1752019851743,-460.0,0.00020273,2]
[370441758,1752019851754,-460.0,0.00020273,2]
[370441759,1752019851763,-460.0,0.00020273,2]
[370441760,1752019851772,-289.27897703,0.00020324,2]
[370441761,1752019851783,-1000.0,0.00020459,2]
[370441762,1752019851792,-1000.0,0.00020481,2]
[370441763,1752019851800,-1000.0,0.00020481,2]
[370441764,1752019851810,-314.5323604,0.00020481,2]
[370441765,1752019851819,-500.0,0.00020481,2]
[370441766,1752019851828,-500.0,0.00020481,2]
[370441767,1752019851837,-1000.0,0.00020481,2]
[370441768,1752019851846,-2529.12,0.00020488,2]
[370441769,1752019851856,-407.0,0.00020489,2]
[370441770,1752019851866,-500.0,0.0002049,2]
[370441771,1752019851876,-5000.0,0.00020526,2]
[370441772,1752019851886,-239.22832057,0.00020538,2]
[370441773,1752019851895,-310.71229955,0.00020547,2]
[370441774,1752019851906,-460.0,0.00020547,2]
[370441775,1752019851916,-460.0,0.00020547,2]
[370441776,1752019851925,-384.35112441,0.00020547,2]
[370441777,1752019851935,-460.0,0.00020547,2]
[370441778,1752019851944,-460.0,0.00020547,2]
[370441779,1752019851954,-460.0,0.00020547,2]
[370441780,1752019851963,-290.44314168,0.00020547,2]
[370441781,1752019851972,-460.0,0.00020547,2]
[370441782,1752019851981,-487.58207288,0.00020547,2]
[370441783,1752019851990,-460.0,0.00020547,2]
[370441784,1752019852000,-460.0,0.00020547,2]
[370441785,1752019852009,-460.0,0.00020547,2]
[370441786,1752019852018,-460.0,0.00020547,2]
[370441787,1752019852028,-460.0,0.00020547,2]
[370441788,1752019852039,-460.0,0.00020547,2]
[370441789,1752019852049,-460.0,0.00020547,2]
[370441790,1752019852058,-407.30170349,0.00020547,2]
[370441791,1752019852069,-600.62262217,0.00020547,2]
[370441792,1752019852078,-460.0,0.00020547,2]
[370441793,1752019852087,-503.59,0.00020547,2]
[370441795,1752019852097,-460.0,0.00020547,2]
[370441797,1752019852106,-538.14,0.00020547,2]
[370441799,1752019852116,-460.0,0.00020547,2]
[370441801,1752019852125,-221.64365544,0.00020547,2]
[370441803,1752019852134,-460.0,0.00020547,2]
[370441805,1752019852144,-460.0,0.00020547,2]
[370441807,1752019852154,-319.3,0.00020547,2]
[370441809,1752019852164,-460.0,0.00020547,2]
[370441811,1752019852174,-460.0,0.00020547,2]
[370441813,1752019852183,-460.0,0.00020547,2]
[370441827,1752019852192,-460.0,0.00020547,2]
[370441829,1752019852310,-460.0,0.00020547,2]
[370441831,1752019852319,-460.0,0.00020547,2]
[370441833,1752019852328,-460.0,0.00020547,2]
[370441835,1752019852338,-460.0,0.00020547,2]
[370441837,1752019852347,-460.0,0.00020547,2]
[370441839,1752019852356,-460.0,0.00020547,2]
[370441841,1752019852365,-460.0,0.00020547,2]
[370441843,1752019852374,-460.0,0.00020547,2]
[370441844,1752019852384,-541.94,0.00020547,2]
[370441846,1752019852393,-460.0,0.00020547,2]
[370441848,1752019852402,-460.0,0.00020547,2]
[370441850,1752019852411,-566.24,0.00020547,2]
[370441852,1752019852420,-460.0,0.00020547,2]
[370441854,1752019852430,-460.0,0.00020547,2]
[370441856,1752019852439,-460.0,0.00020547,2]
[370441858,1752019852448,-525.20988328,0.00020547,2]
[370441860,1752019852458,-518.87,0.00020547,2]
[370441862,1752019852467,-514.65,0.00020547,2]
[370441864,1752019852476,-460.0,0.00020547,2]
[370441866,1752019852486,-460.0,0.00020547,2]
[370441868,1752019852496,-460.0,0.00020547,2]
[370441870,1752019852506,-2944.03,0.00020547,2]
[370441872,1752019852515,-460.0,0.00020547,2]
[370441874,1752019852525,-888.31,0.00020547,2]
[370441876,1752019852534,-460.0,0.00020547,2]
[370441878,1752019852544,-460.0,0.00020547,2]
[370441880,1752019852553,-1582.2,0.00020547,2]
[370441882,1752019852562,-759.99,0.00020547,2]
[370441884,1752019852571,-460.0,0.00020547,2]
[370441886,1752019852581,-460.0,0.00020547,2]
[370441888,1752019852590,-460.0,0.00020547,2]
[370441890,1752019852600,-460.0,0.00020547,2]
[370441892,1752019852611,-2289.87,0.00020547,2]
[370441894,1752019852621,-460.0,0.00020547,2]
[370441896,1752019852631,-460.0,0.00020547,2]
[370441898,1752019852641,-790.34,0.00020547,2]
[370441900,1752019852652,-3100.13,0.00020547,2]
[370441902,1752019852667,-460.0,0.00020547,2]
[370441904,1752019852677,-460.0,0.00020547,2]
[370441906,1752019852687,-460.0,0.00020547,2]
[370441908,1752019852697,-460.0,0.00020547,2]
[370441910,1752019852707,-460.0,0.00020547,2]
[370441912,1752019852716,-889.7,0.00020547,2]
[370441914,1752019852727,-460.0,0.00020547,2]
[370441916,1752019852737,-460.0,0.00020547,2]
[370441918,1752019852747,-460.0,0.00020547,2]
[370441920,1752019852757,-460.0,0.00020547,2]
[370441922,1752019852766,-460.0,0.00020547,2]
[370441924,1752019852776,-460.0,0.00020547,2]
[370441926,1752019852785,-460.0,0.00020547,2]
[370441928,1752019852795,-951.48,0.00020547,2]
[370441930,1752019852804,-1626.12,0.00020547,2]
[370441932,1752019852813,-460.0,0.00020547,2]
[370441934,1752019852823,-1831.24,0.00020547,2]
[370441936,1752019852832,-460.0,0.00020547,2]
[370441938,1752019852841,-460.0,0.00020547,2]
[370441940,1752019852851,-460.0,0.00020547,2]
[370441942,1752019852862,-460.0,0.00020547,2]
[370441943,1752019852871,-460.0,0.00020547,2]
[370441945,1752019852881,-679.73,0.00020547,2]
[370441947,1752019852891,-2108.53,0.00020547,2]
[370441949,1752019852901,-1057.61,0.00020547,2]
[370441951,1752019852911,-460.0,0.00020547,2]
[370441953,1752019852920,-520.41,0.00020547,2]
[370441955,1752019852929,-460.0,0.00020547,2]
[370441957,1752019852938,-592.43,0.00020547,2]
[370441959,1752019852947,-460.0,0.00020547,2]
[370441961,1752019852957,-460.0,0.00020547,2]
[370441963,1752019852966,-460.0,0.00020547,2]
[370441965,1752019852976,-460.0,0.00020547,2]
[370441967,1752019852986,-460.0,0.00020547,2]
[370441969,1752019852995,-460.0,0.00020547,2]
[370441971,1752019853005,-982.88,0.00020547,2]
[370441973,1752019853014,-460.0,0.00020547,2]
[370441975,1752019853024,-460.0,0.00020547,2]
[370441977,1752019853033,-460.0,0.00020547,2]
[370441979,1752019853042,-766.74,0.00020547,2]
[370441981,1752019853052,-460.0,0.00020547,2]
[370441983,1752019853061,-1025.26,0.00020547,2]
[370441985,1752019853071,-460.0,0.00020547,2]
[370441987,1752019853080,-1400.58,0.00020547,2]
[370441989,1752019853089,-460.0,0.00020547,2]
[370441991,1752019853098,-569.88,0.00020547,2]
[370441993,1752019853107,-460.0,0.00020547,2]
[370441995,1752019853117,-460.0,0.00020547,2]
[370441997,1752019853126,-460.0,0.00020547,2]
[370441999,1752019853135,-1543.53,0.00020547,2]
[370442001,1752019853144,-460.0,0.00020547,2]
[370442003,1752019853154,-640.26,0.00020547,2]
[370442005,1752019853163,-460.0,0.00020547,2]
[370442007,1752019853172,-460.0,0.00020547,2]
[370442009,1752019853182,-460.0,0.00020547,2]
[370442011,1752019853191,-460.0,0.00020547,2]
[370442013,1752019853201,-460.0,0.00020547,2]
[370442015,1752019853210,-537.19,0.00020547,2]
[370442017,1752019853219,-297.13560618,0.00020547,2]
[370442038,1752019853413,-162.86439382,0.00020547,2]
[370442040,1752019853423,-109.46413989,0.00020547,2]
[370442048,1752019853485,-350.53586011,0.00020547,2]
[370442050,1752019853495,-460.0,0.00020547,2]
[370442052,1752019853505,-1093.05,0.00020547,2]
[370442054,1752019853514,-460.0,0.00020547,2]
[370442055,1752019853524,-460.0,0.00020547,2]
[370442057,1752019853534,-264.27043321,0.00020568,2]
[370442060,1752019853546,-1235.72956679,0.00020568,2]
[370442062,1752019853556,-500.0,0.00020576,2]
[370442064,1752019853565,-151.0,0.00020576,2]
[370442066,1752019853574,-151.0,0.00020576,2]
[370442068,1752019853585,-151.0,0.00020576,2]
[370442070,1752019853594,-151.0,0.00020576,2]
[370442072,1752019853604,-151.0,0.00020576,2]
[370442074,1752019853613,-151.0,0.00020576,2]
[370442076,1752019853622,-500.0,0.00020576,2]
[370442078,1752019853632,-245.11139049,0.00020576,2]
[370442080,1752019853641,-151.0,0.00020576,2]
[370442082,1752019853651,-151.0,0.00020576,2]
[370442084,1752019853664,-151.0,0.00020576,2]
[370442086,1752019853673,-151.0,0.00020576,2]
[370442088,1752019853683,-500.0,0.00020576,2]
[370442090,1752019853694,-151.0,0.00020576,2]
[370442092,1752019853704,-151.0,0.00020576,2]
[370442094,1752019853713,-2700.52492769,0.00020589,2]
[370442125,1752019854009,-271.69501127,0.00020589,2]
[370442127,1752019854021,-784.25,0.00020589,2]
[370442406,1752019891425,200.0,0.00026176,120]
[370442407,1752019951394,200.0,0.00026167,120]
[370442408,1752020011081,200.0,0.00025789,120]
[370442410,1752020071123,200.0,0.00026329,120]
[370442412,1752020191509,200.0,0.00026911,120]
[370442413,1752020252017,200.0,0.00025142,120]
[370442414,1752020311892,200.0,0.00025578,120]
[370442415,1752020371124,200.0,0.00024617,120]
[370442416,1752020431085,200.0,0.00025753,120]
[370442417,1752020491100,200.0,0.00026552,120]
[370442418,1752020552068,200.0,0.00027342,120]
[370442419,1752020611355,200.0,0.0002665,120]
[370442421,1752020651141,544.598914,0.00013699,2]
[370442422,1752020671316,200.0,0.00024876,120]
[370442423,1752020731094,200.0,0.00024094,120]
[370442424,1752020790849,200.0,0.00024549,120]
[370442426,1752020851049,200.0,0.00024322,120]
[370442431,1752020911854,200.0,0.0002599,120]
[370442436,1752020971808,200.0,0.00024444,120]
[370442438,1752021031129,200.0,0.00025927,120]
[370442457,1752021032647,-1618.09255753,0.00019067,2]
[370442459,1752021032658,-451.43604135,0.00019078,2]
[370442461,1752021032669,-151.0,0.00019166,2]
[370442463,1752021032679,-300.0,0.00019177,2]
[370442465,1752021032690,-460.0,0.00019178,2]
[370442467,1752021032701,-460.0,0.00019178,2]
[370442469,1752021032711,-460.0,0.00019178,2]
[370442471,1752021032722,-460.0,0.00019178,2]
[370442473,1752021032733,-460.0,0.00019178,2]
[370442475,1752021032743,-544.06228736,0.00019178,2]
[370442476,1752021032754,-460.0,0.00019178,2]
[370442479,1752021032766,-463.6476598,0.00019178,2]
[370442483,1752021032777,-460.0,0.00019178,2]
[370442486,1752021032787,-460.0,0.00019178,2]
[370442489,1752021032798,-460.0,0.00019178,2]
[370442492,1752021032808,-460.0,0.00019178,2]
[370442494,1752021032820,-487.58493329,0.00019178,2]
[370442496,1752021032830,-460.0,0.00019178,2]
[370442498,1752021032841,-465.858489,0.00019178,2]
[370442501,1752021032852,-460.0,0.00019178,2]
[370442503,1752021032863,-460.0,0.00019178,2]
[370442505,1752021032874,-240.3396799,0.00019178,2]
[370442507,1752021032885,-460.0,0.00019178,2]
[370442509,1752021032895,-449.86007187,0.00019178,2]
[370442511,1752021032906,-271.43820573,0.00019178,2]
[370442514,1752021032918,-460.0,0.00019178,2]
[370442516,1752021032928,-483.74377633,0.00019178,2]
[370442518,1752021032939,-460.0,0.00019178,2]
[370442520,1752021032950,-460.0,0.00019178,2]
[370442522,1752021032961,-460.45268572,0.00019178,2]
[370442524,1752021032971,-460.0,0.00019178,2]
[370442526,1752021032983,-272.44639769,0.00019178,2]
[370442529,1752021032994,-460.0,0.00019178,2]
[370442531,1752021033005,-204.69484356,0.00019178,2]
[370442533,1752021033016,-460.0,0.00019178,2]
[370442535,1752021033027,-500.0,0.00019178,2]
[370442537,1752021033038,-500.0,0.00019178,2]
[370442539,1752021033048,-500.0,0.00019178,2]
[370442541,1752021033059,-500.0,0.00019178,2]
[370442543,1752021033070,-500.0,0.00019178,2]
[370442545,1752021033082,-500.0,0.00019178,2]
[370442547,1752021033093,-460.0,0.00019178,2]
[370442548,1752021033105,-500.0,0.00019178,2]
[370442549,1752021033116,-500.0,0.00019178,2]
[370442550,1752021033126,-500.0,0.00019178,2]
[370442551,1752021033137,-500.0,0.00019178,2]
[370442552,1752021033148,-460.0,0.00019178,2]
[370442553,1752021033160,-460.0,0.00019178,2]
[370442554,1752021033172,-460.0,0.00019178,2]
[370442555,1752021033183,-460.0,0.00019178,2]
[370442556,1752021033194,-460.0,0.00019178,2]
[370442557,1752021033206,-460.0,0.00019178,2]
[370442558,1752021033217,-460.0,0.00019178,2]
[370442559,1752021033229,-589.2989358,0.00019178,2]
[370442560,1752021033240,-460.0,0.00019178,2]
[370442561,1752021033251,-460.0,0.00019178,2]
[370442562,1752021033263,-460.0,0.00019178,2]
[370442563,1752021033273,-460.0,0.00019178,2]
[370442564,1752021033283,-399.67921954,0.00019178,2]
[370442565,1752021033292,-460.0,0.00019178,2]
[370442566,1752021033304,-460.0,0.00019178,2]
[370442567,1752021033313,-460.0,0.00019178,2]
[370442568,1752021033323,-460.0,0.00019178,2]
[370442569,1752021033333,-460.0,0.00019178,2]
[370442570,1752021033343,-473.18,0.00019178,2]
[370442571,1752021033353,-460.0,0.00019178,2]
[370442572,1752021033363,-460.0,0.00019178,2]
[370442573,1752021033605,-460.0,0.00019178,2]
[370442574,1752021033624,-460.0,0.00019178,2]
[370442575,1752021033634,-460.0,0.00019178,2]
[370442576,1752021033644,-460.0,0.00019178,2]
[370442577,1752021033654,-460.0,0.00019178,2]
[370442578,1752021033664,-460.0,0.00019178,2]
[370442579,1752021033673,-460.0,0.00019178,2]
[370442580,1752021033683,-460.0,0.00019178,2]
[370442581,1752021033693,-460.0,0.00019178,2]
[370442582,1752021033702,-460.0,0.00019178,2]
[370442583,1752021033712,-460.0,0.00019178,2]
[370442584,1752021033722,-460.0,0.00019178,2]
[370442585,1752021033732,-460.0,0.00019178,2]
[370442586,1752021033742,-460.0,0.00019178,2]
[370442587,1752021033752,-460.0,0.00019178,2]
[370442588,1752021033761,-460.0,0.00019178,2]
[370442589,1752021033771,-460.0,0.00019178,2]
[370442590,1752021033780,-444.42656015,0.00019178,2]
[370442591,1752021033790,-460.0,0.00019178,2]
[370442592,1752021033799,-460.0,0.00019178,2]
[370442593,1752021033809,-460.0,0.00019178,2]
[370442594,1752021033819,-430.2538208,0.00019178,2]
[370442595,1752021033828,-460.0,0.00019178,2]
[370442596,1752021033838,-197.46680754,0.00019178,2]
[370442597,1752021033847,-460.0,0.00019178,2]
[370442598,1752021033857,-460.0,0.00019178,2]
[370442599,1752021033866,-460.0,0.00019178,2]
[370442600,1752021033875,-430.0,0.00019178,2]
[370442601,1752021033885,-460.0,0.00019178,2]
[370442602,1752021033894,-327.81698705,0.00019178,2]
[370442603,1752021033908,-132.18301295,0.00019178,2]
[370442604,1752021033918,-288.98572973,0.00019178,2]
[370442605,1752021033930,-171.01427027,0.00019178,2]
[370442606,1752021033941,-417.73931913,0.00019178,2]
[370442607,1752021033952,-48.08068087,0.00019178,2]
[370442608,1752021033963,-460.0,0.00019178,2]
[370442609,1752021033973,-460.0,0.00019178,2]
[370442610,1752021033983,-460.0,0.00019178,2]
[370442611,1752021033992,-460.0,0.00019178,2]
[370442612,1752021034002,-460.0,0.00019178,2]
[370442613,1752021034012,-460.0,0.00019178,2]
[370442614,1752021034021,-460.0,0.00019178,2]
[370442615,1752021034031,-460.0,0.00019178,2]
[370442616,1752021034040,-460.0,0.00019178,2]
[370442617,1752021034050,-440.0,0.00019178,2]
[370442618,1752021034060,-460.0,0.00019178,2]
[370442619,1752021034070,-460.0,0.00019178,2]
[370442620,1752021034079,-460.0,0.00019178,2]
[370442621,1752021034088,-460.0,0.00019178,2]
[370442622,1752021034098,-460.0,0.00019178,2]
[370442623,1752021034107,-433.0633059,0.00019178,2]
[370442624,1752021034117,-460.0,0.00019178,2]
[370442625,1752021034126,-525.92397937,0.00019178,2]
[370442626,1752021034136,-460.0,0.00019178,2]
[370442627,1752021034145,-460.0,0.00019178,2]
[370442628,1752021034155,-460.0,0.00019178,2]
[370442629,1752021034164,-460.0,0.00019178,2]
[370442630,1752021034174,-460.0,0.00019178,2]
[370442631,1752021034183,-460.0,0.00019178,2]
[370442632,1752021034192,-460.0,0.00019178,2]
[370442633,1752021034202,-460.0,0.00019178,2]
[370442634,1752021034211,-460.0,0.00019178,2]
[370442635,1752021034220,-356.03,0.00019178,2]
[370442636,1752021034229,-460.0,0.00019178,2]
[370442637,1752021034239,-460.0,0.00019178,2]
[370442638,1752021034248,-460.0,0.00019178,2]
[370442639,1752021034258,-460.0,0.00019178,2]
[370442640,1752021034268,-460.0,0.00019178,2]
[370442641,1752021034278,-460.0,0.00019178,2]
[370442642,1752021034288,-460.0,0.00019178,2]
[370442643,1752021034298,-460.0,0.00019178,2]
[370442644,1752021034311,-464.68187714,0.00019178,2]
[370442645,1752021034321,-460.0,0.00019178,2]
[370442646,1752021034332,-460.0,0.00019178,2]
[370442647,1752021034342,-460.0,0.00019178,2]
[370442648,1752021034353,-460.0,0.00019178,2]
[370442649,1752021034363,-460.0,0.00019178,2]
[370442650,1752021034372,-460.0,0.00019178,2]
[370442651,1752021034384,-460.0,0.00019178,2]
[370442652,1752021034394,-500.0,0.00019178,2]
[370442653,1752021034403,-460.0,0.00019178,2]
[370442654,1752021034412,-460.0,0.00019178,2]
[370442655,1752021034422,-522.68,0.00019178,2]
[370442656,1752021034431,-778.49,0.00019178,2]
[370442657,1752021034440,-460.0,0.00019178,2]
[370442658,1752021034449,-460.0,0.00019178,2]
[370442659,1752021034460,-460.0,0.00019178,2]
[370442660,1752021034470,-460.0,0.00019178,2]
[370442661,1752021034480,-460.0,0.00019178,2]
[370442662,1752021034490,-460.0,0.00019178,2]
[370442663,1752021034500,-499.75620331,0.00019178,2]
[370442664,1752021034509,-460.0,0.00019178,2]
[370442665,1752021034518,-460.0,0.00019178,2]
[370442666,1752021034527,-460.0,0.00019178,2]
[370442667,1752021034537,-460.0,0.00019178,2]
[370442668,1752021034547,-460.0,0.00019178,2]
[370442669,1752021034556,-460.0,0.00019178,2]
[370442670,1752021034565,-460.0,0.00019178,2]
[370442671,1752021034575,-460.0,0.00019178,2]
[370442672,1752021034585,-460.0,0.00019178,2]
[370442673,1752021034594,-880.12,0.00019178,2]
[370442674,1752021034605,-460.0,0.00019178,2]
[370442675,1752021034615,-460.0,0.00019178,2]
[370442676,1752021034625,-460.0,0.00019178,2]
[370442677,1752021034635,-460.0,0.00019178,2]
[370442678,1752021034644,-460.0,0.00019178,2]
[370442679,1752021034654,-460.0,0.00019178,2]
[370442680,1752021034663,-1463.54,0.00019178,2]
[370442681,1752021034673,-460.0,0.00019178,2]
[370442682,1752021034683,-177.41322904,0.00019178,2]
[370442683,1752021034693,-460.0,0.00019178,2]
[370442684,1752021034702,-460.0,0.00019178,2]
[370442685,1752021034712,-510.12327461,0.00019178,2]
[370442686,1752021034721,-331.80231327,0.00019178,2]
[370442687,1752021034731,-460.0,0.00019178,2]
[370442688,1752021034740,-460.0,0.00019178,2]
[370442689,1752021034749,-518.38,0.00019178,2]
[370442690,1752021034759,-460.0,0.00019178,2]
[370442691,1752021034769,-460.0,0.00019178,2]
[370442692,1752021034779,-463.55864156,0.00019178,2]
[370442693,1752021034788,-460.0,0.00019178,2]
[370442694,1752021034798,-460.0,0.00019178,2]
[370442695,1752021034807,-460.0,0.00019178,2]
[370442696,1752021034817,-460.0,0.00019178,2]
[370442697,1752021034826,-460.0,0.00019178,2]
[370442698,1752021034835,-460.0,0.00019178,2]
[370442699,1752021034845,-460.0,0.00019178,2]
[370442700,1752021034854,-460.0,0.00019178,2]
[370442701,1752021034863,-460.0,0.00019178,2]
[370442702,1752021034873,-404.73949645,0.00019178,2]
[370442703,1752021034883,-460.0,0.00019178,2]
[370442704,1752021034892,-460.0,0.00019178,2]
[370442705,1752021034901,-925.41,0.00019178,2]
[370442706,1752021034910,-670.89,0.00019178,2]
[370442707,1752021034919,-460.0,0.00019178,2]
[370442708,1752021034929,-498.65,0.00019178,2]
[370442709,1752021034938,-460.0,0.00019178,2]
[370442710,1752021034947,-460.0,0.00019178,2]
[370442711,1752021034957,-460.0,0.00019178,2]
[370442712,1752021034966,-460.0,0.00019178,2]
[370442713,1752021034975,-460.0,0.00019178,2]
[370442714,1752021034984,-2118.13,0.00019178,2]
[370442715,1752021034994,-1422.85,0.00019178,2]
[370442716,1752021035003,-460.0,0.00019178,2]
[370442717,1752021035013,-460.0,0.00019178,2]
[370442718,1752021035022,-460.0,0.00019178,2]
[370442719,1752021035032,-460.0,0.00019178,2]
[370442720,1752021035041,-460.0,0.00019178,2]
[370442721,1752021035051,-460.0,0.00019178,2]
[370442722,1752021035061,-460.0,0.00019178,2]
[370442723,1752021035070,-460.0,0.00019178,2]
[370442724,1752021035079,-460.0,0.00019178,2]
[370442725,1752021035089,-460.0,0.00019178,2]
[370442726,1752021035098,-470.04,0.00019178,2]
[370442727,1752021035108,-1350.58,0.00019178,2]
[370442728,1752021035117,-460.0,0.00019178,2]
[370442729,1752021035127,-460.0,0.00019178,2]
[370442730,1752021035136,-469.10159919,0.00019178,2]
[370442731,1752021035145,-460.0,0.00019178,2]
[370442732,1752021035155,-460.0,0.00019178,2]
[370442733,1752021035164,-860.02,0.00019178,2]
[370442734,1752021035173,-460.0,0.00019178,2]
[370442735,1752021035183,-460.0,0.00019178,2]
[370442736,1752021035192,-460.0,0.00019178,2]
[370442737,1752021035202,-460.0,0.00019178,2]